[Event "4th Tamil Nadu Circuit-IM 2023"]
[Site "Pollachi"]
[Date "2023.11.08"]
[Round "4.1"]
[White "Abdyzhapar, Asylbek"]
[Black "Laddha, Shubh Jayesh"]
[Result "1-0"]
[ECO "C88"]
[WhiteElo "2314"]
[BlackElo "2373"]
[Annotator "RC"]
[PlyCount "107"]
[EventDate "2023.10.23"]
[EventType "tourn"]
[EventCountry "IND"]
[SourceTitle "playchess.com"]
[Source "ChessBase"]
[SourceQuality "1"]
[TimeControl "5400+30"]

1. e4 {[%emt 0:03:44]} e5 {[%emt 0:00:05]} 2. Nf3 {[%emt 0:00:04]} Nc6 {[%emt 0:00:04]} 3. Bb5 {[%emt 0:00:06]} a6 {[%emt 0:00:04]} 4. Ba4 {[%emt 0:00:04]} Nf6 {[%emt 0:00:15]} 5. O-O {[%emt 0:00:06]} Be7 {[%emt 0:00:03]} 6. Re1 {[%emt 0:00:04]} b5 {[%emt 0:00:04]} 7. Bb3 {[%emt 0:00:06]} O-O {[%emt 0:00:05]} 8. a4 {[%emt 0:00:11]} b4 {[%emt 0:00:11]} 9. d4 {[%emt 0:00:04]} d6 {[%emt 0:00:58]} 10. dxe5 {[%emt 0:00:05]} dxe5 {[%emt 0:00:13]} 11. Nbd2 {[%emt 0:00:17]} Bc5 {[%emt 0:01:06]} 12. c3 {[%emt 0:02:22]} bxc3 {[%emt 0:19:59]} 13. bxc3 {[%emt 0:00:04]} Rb8 {[%emt 0:01:23]} 14. a5 {[%emt 0:05:56]} Qd3 {[%emt 0:15:09]} 15. Qc2 {[%emt 0:10:18]} Qxc2 {[%emt 0:08:44]} 16. Bxc2 {[%emt 0:00:04]} Bd6 {[%emt 0:08:45]} 17. Nc4 {[%emt 0:10:57]} Be6 {[%emt 0:04:14]} 18. Nxd6 {[%emt 0:01:12]} cxd6 {[%emt 0:00:05]} 19. Be3 {[%emt 0:05:07]} d5 {[%emt 0:14:48]} 20. Bc5 {[%emt 0:05:59]} Rfc8 {[%emt 0:03:20]} 21. exd5 {[%emt 0:01:21]} Bxd5 {[%emt 0:04:00]} 22. Bd6 {[%emt 0:07:59]} Rb5 {[%emt 0:07:42]} 23. Nxe5 {[%emt 0:07:09]} Nxa5 {[%emt 0:01:02]} 24. Bd3 {[%emt 0:03:46]} Rb6 {[%emt 0:02:11]} 25. Bb4 {[%emt 0:06:09]} Nc4 {[%emt 0:00:39]} 26. h3 {[%emt 0:03:48]} Nxe5 {[%emt 0:02:05]} 27. Rxe5 {[%emt 0:00:08]} Bc4 {[%emt 0:01:07]} 28. Bxc4 {[%emt 0:10:42]} Rxc4 {[%emt 0:00:09]} 29. Rd1 {[%emt 0:00:32]} Rc8 {[%emt 0:01:16]} 30. Re7 {[%emt 0:01:42]} h6 {[%emt 0:00:54]} 31. Ra7 {[%emt 0:01:03]} Rbc6 {[%emt 0:01:20]} 32. Rd4 {[%emt 0:00:46]} R8c7 {[%emt 0:02:22]} 33. Rxc7 {[%emt 0:01:37]} Rxc7 {[%emt 0:00:04]} 34. Kf1 {[%emt 0:00:07]} Nd7 {[%emt 0:01:23]} 35. Ke2 {[%emt 0:00:27]} f6 {[%emt 0:00:52]} 36. f4 {[%emt 0:00:42]} Kf7 {[%emt 0:00:26]} 37. Kd3 {[%emt 0:00:05]} Nc5+ {[%emt 0:00:52]} 38. Bxc5 {[%emt 0:00:47]} Rxc5 {[%emt 0:00:04]} 39. Rd7+ {[%emt 0:00:05]} Kg6 {[%emt 0:00:08]} 40. c4 {[%emt 0:01:07]} Ra5 {[%emt 0:00:21]} 41. Kc3 {[%emt 0:04:52]} Ra1 {[%emt 0:01:00]} 42. Kb2 {[%emt 0:01:16]} Ra4 {[%emt 0:00:36]} 43. Kb3 {[%emt 0:01:34]} Ra1 {[%emt 0:00:08]} 44. g4 {[%emt 0:00:35]} h5 {[%emt 0:00:31]} 45. gxh5+ {[%emt 0:00:16]} Kh6 {[%emt 0:00:05]} 46. Rd2 {[%emt 0:01:46]} Rh1 {[%emt 0:00:53]} 47. c5 {[%emt 0:00:13]} Rxh3+ {[%emt 0:00:26]} 48. Kb4 {[%emt 0:00:24]} Rxh5 {[%emt 0:00:58]} 49. c6 {[%emt 0:00:38]} Rb5+ {[%emt 0:00:31]} 50. Kc4 {[%emt 0:00:03]} Rb8 {[%emt 0:00:36]} 51. Kc5 {[%emt 0:02:03]} Kg6 {[%emt 0:00:51]} 52. Rd5 {[%emt 0:00:58]} Rb1 {[%emt 0:00:47]} 53. c7 {[%emt 0:00:12]} Rc1+ {[%emt 0:00:11]} 54. Kd6 {[%emt 0:00:07]} 1-0

[Event "4th Tamil Nadu Circuit-IM 2023"]
[Site "Pollachi"]
[Date "2023.11.08"]
[Round "4.2"]
[White "Nandhidhaa, P V"]
[Black "Nawin J J"]
[Result "1-0"]
[ECO "C68"]
[WhiteElo "2260"]
[BlackElo "2305"]
[Annotator "RC"]
[PlyCount "77"]
[EventDate "2023.10.23"]
[EventType "tourn"]
[EventCountry "IND"]
[SourceTitle "playchess.com"]
[Source "ChessBase"]
[SourceQuality "1"]
[TimeControl "5400+30"]

1. e4 {[%emt 0:01:23]} e5 2. Nf3 {[%emt 0:00:05]} Nc6 {[%emt 0:00:18]} 3. Bb5 {[%emt 0:00:13]} a6 {[%emt 0:00:08]} 4. Bxc6 {[%emt 0:01:56]} dxc6 {[%emt 0:05:36]} 5. O-O {[%emt 0:00:10]} Bd6 {[%emt 0:01:32]} 6. d4 {[%emt 0:04:44]} Bg4 {[%emt 0:06:56]} 7. dxe5 {[%emt 0:03:34]} Bxf3 {[%emt 0:00:08]} 8. Qxf3 {[%emt 0:00:37]} Bxe5 {[%emt 0:00:06]} 9. Nd2 {[%emt 0:03:04]} Qf6 {[%emt 0:07:38]} 10. Qb3 {[%emt 0:11:19]} O-O-O {[%emt 0:03:22]} 11. Nf3 {[%emt 0:09:47]} Bf4 {[%emt 0:02:59]} 12. e5 {[%emt 0:01:44]} Qf5 {[%emt 0:00:24]} 13. Bxf4 {[%emt 0:00:42]} Qxf4 {[%emt 0:00:06]} 14. e6 {[%emt 0:02:58]} fxe6 {[%emt 0:02:38]} 15. Qxe6+ {[%emt 0:00:12]} Kb8 {[%emt 0:00:04]} 16. Rad1 {[%emt 0:05:16]} Nf6 {[%emt 0:00:37]} 17. h3 {[%emt 0:05:09]} Rhe8 {[%emt 0:10:41]} 18. Qf7 {[%emt 0:01:53]} g5 {[%emt 0:05:16]} 19. Rfe1 {[%emt 0:03:34]} Rxe1+ {[%emt 0:02:07]} 20. Rxe1 {[%emt 0:00:02]} h5 {[%emt 0:00:49]} 21. Ne5 {[%emt 0:02:29]} g4 {[%emt 0:28:25]} 22. Nd3 {[%emt 0:04:00]} Qd4 {[%emt 0:01:14]} 23. hxg4 {[%emt 0:04:40]} hxg4 {[%emt 0:01:00]} 24. Re6 {[%emt 0:04:07]} Nd5 {[%emt 0:04:00]} 25. Re8 {[%emt 0:05:00]} Rxe8 {[%emt 0:00:36]} 26. Qxe8+ {[%emt 0:00:02]} Ka7 {[%emt 0:00:06]} 27. Kh2 {[%emt 0:04:37]} Qc4 {[%emt 0:06:41]} 28. Qe2 {[%emt 0:01:08]} b6 {[%emt 0:00:39]} 29. a3 {[%emt 0:03:38]} a5 {[%emt 0:00:19]} 30. b3 {[%emt 0:02:45]} Qc3 {[%emt 0:01:11]} 31. Kg3 {[%emt 0:00:23]} a4 {[%emt 0:06:47]} 32. bxa4 {[%emt 0:01:29]} c5 {[%emt 0:00:36]} 33. Qe5 {[%emt 0:03:46]} Qc4 {[%emt 0:00:42]} 34. a5 {[%emt 0:04:07]} bxa5 {[%emt 0:00:46]} 35. Nb2 {[%emt 0:02:17]} Qa2 {[%emt 0:02:12]} 36. Kxg4 {[%emt 0:01:26]} Qxa3 {[%emt 0:00:47]} 37. Nc4 {[%emt 0:01:02]} Qb4 {[%emt 0:00:51]} 38. Qxd5 {[%emt 0:00:17]} a4 {[%emt 0:00:04]} 39. Qd3 {[%emt 0:00:21]} 1-0

[Event "4th Tamil Nadu Circuit-IM 2023"]
[Site "Pollachi"]
[Date "2023.11.08"]
[Round "4.3"]
[White "Podolchenko, Evgeniy"]
[Black "Shaik Sumer Arsh"]
[Result "*"]
[ECO "E36"]
[WhiteElo "2395"]
[BlackElo "2273"]
[Annotator "RC"]
[PlyCount "57"]
[EventDate "2023.10.23"]
[EventType "tourn"]
[EventCountry "IND"]
[SourceTitle "playchess.com"]
[Source "ChessBase"]
[SourceQuality "1"]
[TimeControl "5400+30"]

1. d4 {[%emt 0:00:00]} Nf6 {[%emt 0:00:00]} 2. c4 {[%emt 0:00:00]} e6 {[%emt 0:00:00]} 3. Nc3 {[%emt 0:00:00]} Bb4 {[%emt 0:00:00]} 4. Qc2 {[%emt 0:00:17]} O-O {[%emt 0:00:20]} 5. a3 {[%emt 0:00:30]} Bxc3+ {[%emt 19:52:32]} 6. Qxc3 {[%emt 0:00:02]} d5 {[%emt 0:00:00]} 7. cxd5 {[%emt 0:00:14]} Ne4 {[%emt 0:00:00]} 8. Qc2 {[%emt 0:00:06]} exd5 {[%emt 0:00:00]} 9. Bf4 {[%emt 0:00:05]} Nc6 {[%emt 0:00:00]} 10. e3 {[%emt 0:00:06]} Re8 {[%emt 0:00:00]} 11. Nf3 {[%emt 0:00:06]} g5 {[%emt 0:00:00]} 12. Bg3 {[%emt 0:00:10]} Bf5 {[%emt 0:00:00]} 13. Bd3 {[%emt 0:00:08]} g4 {[%emt 0:00:00]} 14. Ne5 {[%emt 0:00:15]} Nxe5 {[%emt 0:00:00]} 15. dxe5 {[%emt 0:01:25]} Re6 {[%emt 0:00:00]} 16. f3 {[%emt 0:08:57]} Rc6 {[%emt 0:00:00]} 17. Qe2 {[%emt 0:23:32]} Nxg3 {[%emt 0:00:00]} 18. hxg3 {[%emt 0:00:02]} gxf3 {[%emt 0:00:00]} 19. gxf3 {[%emt 0:00:05]} Qg5 {[%emt 0:00:00]} 20. g4 {[%emt 0:00:09]} Bxd3 {[%emt 0:00:00]} 21. Qxd3 {[%emt 0:00:02]} Qg6 {[%emt 0:00:00]} 22. Qxg6+ {[%emt 0:10:03]} hxg6 {[%emt 0:00:00]} 23. Rh2 {[%emt 0:01:13]} Re8 {[%emt 0:00:00]} 24. f4 {[%emt 0:02:17]} f6 {[%emt 0:00:00]} 25. Kd2 {[%emt 0:00:03]} fxe5 {[%emt 0:00:00]} 26. Rah1 {[%emt 0:00:03]} Kf7 {[%emt 0:00:00]} 27. Rh7+ {[%emt 0:05:33]} Kf6 {[%emt 0:00:00]} 28. g5+ {[%emt 0:00:29]} Ke6 {[%emt 0:00:00]} 29. Rg7 {[%emt 0:03:16]} *

[Event "4th Tamil Nadu Circuit-IM 2023"]
[Site "Pollachi"]
[Date "2023.11.08"]
[Round "4.4"]
[White "Gochelashvili, David"]
[Black "Laddha, Yash Jayesh"]
[Result "1-0"]
[ECO "D02"]
[WhiteElo "2277"]
[BlackElo "2171"]
[Annotator "RC"]
[PlyCount "83"]
[EventDate "2023.10.23"]
[EventType "tourn"]
[EventCountry "IND"]
[SourceTitle "playchess.com"]
[Source "ChessBase"]
[SourceQuality "1"]
[TimeControl "5400+30"]

1. d4 {[%emt 0:08:09]} d5 {[%emt 0:00:04]} 2. Nf3 {[%emt 0:00:05]} Nf6 {[%emt 0:00:04]} 3. Bf4 {[%emt 0:00:10]} c5 {[%emt 0:00:04]} 4. e3 {[%emt 0:00:09]} Nc6 {[%emt 0:00:05]} 5. c3 {[%emt 0:03:27]} Qb6 {[%emt 0:00:22]} 6. Qb3 {[%emt 0:00:16]} c4 {[%emt 0:00:06]} 7. Qc2 {[%emt 0:00:07]} Bf5 {[%emt 0:01:44]} 8. Qc1 {[%emt 0:00:07]} e6 {[%emt 0:00:05]} 9. Nbd2 {[%emt 0:00:48]} Qd8 {[%emt 0:19:09]} 10. Nh4 {[%emt 0:14:02]} Bg4 {[%emt 0:07:57]} 11. h3 {[%emt 0:01:50]} Bh5 {[%emt 0:00:04]} 12. g4 {[%emt 0:07:22]} Bg6 {[%emt 0:01:02]} 13. Nxg6 {[%emt 0:02:51]} hxg6 {[%emt 0:00:15]} 14. Bg2 {[%emt 0:01:10]} Bd6 {[%emt 0:04:46]} 15. Bxd6 {[%emt 0:15:32]} Qxd6 {[%emt 0:00:09]} 16. b3 {[%emt 0:00:25]} cxb3 {[%emt 0:04:55]} 17. axb3 {[%emt 0:00:19]} O-O {[%emt 0:04:14]} 18. Qa3 {[%emt 0:02:39]} Qd7 {[%emt 0:03:34]} 19. O-O {[%emt 0:07:43]} a5 {[%emt 0:17:08]} 20. Rfc1 {[%emt 0:11:47]} Ne4 {[%emt 0:06:29]} 21. Nxe4 {[%emt 0:01:09]} dxe4 {[%emt 0:00:58]} 22. Bxe4 {[%emt 0:00:25]} f5 {[%emt 0:01:43]} 23. Bg2 {[%emt 0:06:50]} fxg4 {[%emt 0:09:24]} 24. hxg4 {[%emt 0:00:03]} e5 {[%emt 0:04:17]} 25. d5 {[%emt 0:02:34]} Qf7 {[%emt 0:03:08]} 26. Rc2 {[%emt 0:00:58]} Nd8 {[%emt 0:01:18]} 27. Qa4 {[%emt 0:02:21]} Qf6 {[%emt 0:02:20]} 28. b4 {[%emt 0:03:45]} Nf7 {[%emt 0:00:54]} 29. bxa5 {[%emt 0:00:11]} Qh4 {[%emt 0:02:29]} 30. Qe4 {[%emt 0:03:00]} Ra6 {[%emt 0:05:17]} 31. Ra4 {[%emt 0:02:45]} Rf6 {[%emt 0:01:06]} 32. g5 {[%emt 0:00:12]} Qxg5 {[%emt 0:00:14]} 33. Qg4 {[%emt 0:00:14]} Qh6 {[%emt 0:00:56]} 34. Qg3 {[%emt 0:00:51]} Rf5 {[%emt 0:00:29]} 35. Rg4 {[%emt 0:00:27]} Kh7 {[%emt 0:00:37]} 36. Be4 {[%emt 0:00:48]} Rg5 {[%emt 0:00:02]} 37. f4 {[%emt 0:00:13]} exf4 {[%emt 0:00:27]} 38. exf4 {[%emt 0:00:07]} Rxg4 {[%emt 0:00:52]} 39. Qxg4 {[%emt 0:00:03]} Ne5 {[%emt 0:00:28]} 40. fxe5 {[%emt 0:00:19]} Qe3+ {[%emt 0:00:39]} 41. Kg2 {[%emt 0:00:14]} Rf4 {[%emt 0:00:25]} 42. Bxg6+ {[%emt 0:00:16]} 1-0

[Event "4th Tamil Nadu Circuit-IM 2023"]
[Site "Pollachi"]
[Date "2023.11.08"]
[Round "4.5"]
[White "Sekar, B."]
[Black "Srihari L"]
[Result "1/2-1/2"]
[ECO "B45"]
[WhiteElo "2333"]
[BlackElo "2200"]
[Annotator "RC"]
[PlyCount "80"]
[EventDate "2023.10.23"]
[EventType "tourn"]
[EventCountry "IND"]
[SourceTitle "playchess.com"]
[Source "ChessBase"]
[SourceQuality "1"]
[TimeControl "5400+30"]

1. e4 {[%emt 0:00:00]} c5 {[%emt 0:00:00]} 2. Nf3 {[%emt 0:00:00]} e6 {[%emt 0:00:00]} 3. d4 {[%emt 0:00:13]} cxd4 {[%emt 0:00:00]} 4. Nxd4 {[%emt 0:00:30]} Nc6 5. Nc3 {[%emt 0:00:30]} Nf6 {[%emt 0:00:24]} 6. Ndb5 {[%emt 0:00:30]} Bb4 {[%emt 0:00:26]} 7. a3 {[%emt 0:03:56]} Bxc3+ {[%emt 0:00:11]} 8. Nxc3 {[%emt 0:00:02]} d5 {[%emt 0:00:11]} 9. Bd3 {[%emt 0:01:42]} dxe4 {[%emt 0:00:13]} 10. Nxe4 {[%emt 0:00:05]} Nxe4 {[%emt 0:00:07]} 11. Bxe4 {[%emt 0:00:01]} Qxd1+ {[%emt 0:00:13]} 12. Kxd1 {[%emt 0:00:02]} Bd7 {[%emt 0:00:12]} 13. Be3 {[%emt 0:06:21]} f5 {[%emt 0:00:20]} 14. Bd3 {[%emt 0:06:18]} Kf7 {[%emt 0:02:43]} 15. f4 {[%emt 0:07:39]} e5 {[%emt 0:04:43]} 16. Kd2 {[%emt 0:00:31]} e4 {[%emt 0:10:59]} 17. Be2 {[%emt 0:02:02]} Be6 {[%emt 0:00:10]} 18. Rhd1 {[%emt 0:08:31]} Rac8 {[%emt 0:08:53]} 19. Rac1 {[%emt 0:04:48]} Rhd8+ {[%emt 0:04:36]} 20. Ke1 {[%emt 0:00:43]} Rxd1+ {[%emt 0:00:13]} 21. Kxd1 {[%emt 0:05:12]} a6 {[%emt 0:27:20]} 22. Bb6 {[%emt 0:04:01]} h6 {[%emt 0:08:42]} 23. b4 {[%emt 0:04:13]} g5 {[%emt 0:02:16]} 24. g3 {[%emt 0:10:50]} gxf4 {[%emt 0:01:28]} 25. gxf4 {[%emt 0:00:01]} Rg8 {[%emt 0:04:28]} 26. c4 {[%emt 0:12:00]} Ne7 {[%emt 0:00:13]} 27. Rc3 {[%emt 0:12:40]} Nc8 {[%emt 0:07:39]} 28. Bc5 {[%emt 0:01:54]} b6 {[%emt 0:05:51]} 29. Be3 {[%emt 0:03:12]} Rg2 {[%emt 0:00:48]} 30. h3 {[%emt 0:01:48]} Rh2 {[%emt 0:05:52]} 31. Bd4 {[%emt 0:00:10]} Rh1+ {[%emt 0:00:28]} 32. Kd2 {[%emt 0:00:08]} Ra1 {[%emt 0:02:48]} 33. Rg3 {[%emt 0:01:51]} Ra2+ {[%emt 0:00:02]} 34. Ke1 {[%emt 0:00:14]} Nd6 {[%emt 0:01:16]} 35. Rg7+ {[%emt 0:00:58]} Ke8 {[%emt 0:00:17]} 36. c5 {[%emt 0:00:46]} bxc5 {[%emt 0:00:09]} 37. Bxc5 {[%emt 0:00:09]} Ra1+ {[%emt 0:01:47]} 38. Kf2 {[%emt 0:00:40]} Ra2 {[%emt 0:00:07]} 39. Ke1 {[%emt 0:00:58]} Ra1+ {[%emt 0:00:11]} 40. Kd2 {[%emt 0:00:56]} Ra2+ {[%emt 0:00:26]} 1/2-1/2

[Event "4th Tamil Nadu Circuit-IM 2023"]
[Site "Pollachi"]
[Date "2023.11.08"]
[Round "5.1"]
[White "Srihari L"]
[Black "Abdyzhapar, Asylbek"]
[Result "1-0"]
[ECO "C42"]
[WhiteElo "2200"]
[BlackElo "2314"]
[Annotator "RC"]
[PlyCount "99"]
[EventDate "2023.10.23"]
[EventType "tourn"]
[EventCountry "IND"]
[SourceTitle "playchess.com"]
[Source "ChessBase"]
[SourceQuality "1"]
[TimeControl "5400+30"]

1. e4 {[%emt 0:00:02]} e5 {[%emt 0:02:51]} 2. Nf3 {[%emt 0:00:09]} Nf6 {[%emt 0:00:27]} 3. Nxe5 {[%emt 0:00:10]} d6 {[%emt 0:00:04]} 4. Nf3 {[%emt 0:00:09]} Nxe4 {[%emt 0:00:04]} 5. d4 {[%emt 0:00:07]} d5 {[%emt 0:00:09]} 6. Bd3 {[%emt 0:00:09]} Be7 {[%emt 0:00:29]} 7. O-O {[%emt 0:00:22]} Nc6 {[%emt 0:00:07]} 8. Nbd2 {[%emt 0:00:19]} Nd6 {[%emt 0:04:37]} 9. c3 {[%emt 0:01:35]} Bf5 {[%emt 0:03:43]} 10. Bxf5 {[%emt 0:01:44]} Nxf5 {[%emt 0:00:04]} 11. Re1 {[%emt 0:02:23]} O-O {[%emt 0:03:17]} 12. Ne5 {[%emt 0:05:08]} Nxe5 {[%emt 0:03:00]} 13. Rxe5 {[%emt 0:02:15]} g6 {[%emt 0:01:04]} 14. Qb3 {[%emt 0:10:42]} Bd6 {[%emt 0:09:25]} 15. Rxd5 {[%emt 0:01:42]} Re8 {[%emt 0:06:06]} 16. Nf3 {[%emt 0:03:17]} Qc8 {[%emt 0:09:20]} 17. Bg5 {[%emt 0:28:27]} c6 {[%emt 0:04:46]} 18. Re5 {[%emt 0:02:16]} Bxe5 {[%emt 0:00:13]} 19. dxe5 {[%emt 0:00:05]} h6 {[%emt 0:06:16]} 20. Bf6 {[%emt 0:02:15]} Ng7 {[%emt 0:02:56]} 21. Rd1 {[%emt 0:08:46]} b6 {[%emt 0:15:00]} 22. Rd6 {[%emt 0:03:51]} Qf5 {[%emt 0:18:55]} 23. h3 {[%emt 0:04:26]} Re6 {[%emt 0:04:01]} 24. Nd4 {[%emt 0:01:18]} Qb1+ {[%emt 0:00:34]} 25. Kh2 {[%emt 0:00:02]} Rxd6 {[%emt 0:00:11]} 26. exd6 {[%emt 0:00:01]} Qe4 {[%emt 0:01:01]} 27. Be7 {[%emt 0:04:18]} c5 {[%emt 0:01:20]} 28. Nb5 {[%emt 0:01:50]} c4 {[%emt 0:01:08]} 29. Qb4 {[%emt 0:03:49]} a5 {[%emt 0:00:19]} 30. Qa4 {[%emt 0:00:05]} Ne6 {[%emt 0:03:11]} 31. Nd4 {[%emt 0:01:50]} Qe5+ {[%emt 0:00:38]} 32. Kg1 {[%emt 0:01:28]} Qe1+ {[%emt 0:00:08]} 33. Kh2 {[%emt 0:00:06]} Qe5+ {[%emt 0:00:01]} 34. Kg1 {[%emt 0:00:07]} b5 {[%emt 0:01:27]} 35. Nxb5 {[%emt 0:03:41]} Rb8 {[%emt 0:00:33]} 36. Nd4 {[%emt 0:00:43]} Qe1+ {[%emt 0:00:03]} 37. Kh2 {[%emt 0:00:06]} Qe5+ {[%emt 0:00:02]} 38. Kg1 {[%emt 0:00:01]} Rxb2 {[%emt 0:01:27]} 39. Qe8+ {[%emt 0:00:15]} Kh7 {[%emt 0:00:27]} 40. Qxf7+ {[%emt 0:02:02]} Ng7 {[%emt 0:00:01]} 41. g4 {[%emt 0:00:22]} Qe4 {[%emt 0:00:51]} 42. Kh2 {[%emt 0:01:47]} Rb1 {[%emt 0:00:29]} 43. Nf3 {[%emt 0:01:12]} Qe2 {[%emt 0:00:30]} 44. Kg2 {[%emt 0:01:02]} Qf1+ {[%emt 0:00:27]} 45. Kg3 {[%emt 0:00:05]} Rb2 {[%emt 0:00:13]} 46. Bf8 {[%emt 0:03:31]} Qxf2+ {[%emt 0:00:23]} 47. Kf4 {[%emt 0:00:01]} g5+ {[%emt 0:00:19]} 48. Ke4 {[%emt 0:00:06]} Qc2+ {[%emt 0:01:18]} 49. Kd5 {[%emt 0:00:23]} Qd1+ {[%emt 0:00:33]} 50. Ke4 {[%emt 0:01:21]} 1-0

[Event "4th Tamil Nadu Circuit-IM 2023"]
[Site "Pollachi"]
[Date "2023.11.08"]
[Round "5.2"]
[White "Laddha, Yash Jayesh"]
[Black "Sekar, B."]
[Result "1-0"]
[ECO "B90"]
[WhiteElo "2171"]
[BlackElo "2333"]
[Annotator "RC"]
[PlyCount "49"]
[EventDate "2023.10.23"]
[EventType "tourn"]
[EventCountry "IND"]
[SourceTitle "playchess.com"]
[Source "ChessBase"]
[SourceQuality "1"]
[TimeControl "5400+30"]

1. e4 {[%emt 0:01:38]} c5 {[%emt 0:00:06]} 2. Nf3 {[%emt 0:00:03]} d6 {[%emt 0:00:03]} 3. d4 {[%emt 0:00:06]} cxd4 {[%emt 0:00:02]} 4. Nxd4 {[%emt 0:00:05]} Nf6 {[%emt 0:00:05]} 5. Nc3 {[%emt 0:00:02]} a6 {[%emt 0:00:04]} 6. h3 {[%emt 0:00:04]} e5 {[%emt 0:00:28]} 7. Nde2 {[%emt 0:00:04]} h5 {[%emt 0:00:14]} 8. Bg5 {[%emt 0:00:04]} Be6 {[%emt 0:00:44]} 9. Bxf6 {[%emt 0:00:06]} Qxf6 {[%emt 0:00:03]} 10. Nd5 {[%emt 0:00:04]} Qd8 {[%emt 0:00:07]} 11. Qd3 {[%emt 0:00:06]} Nd7 {[%emt 0:00:23]} 12. O-O-O {[%emt 0:00:07]} g6 {[%emt 0:01:01]} 13. Kb1 {[%emt 0:00:08]} Nc5 {[%emt 0:00:44]} 14. Qf3 {[%emt 0:00:06]} Bg7 {[%emt 0:00:13]} 15. Nec3 {[%emt 0:00:06]} b5 {[%emt 0:01:49]} 16. Ne3 {[%emt 0:00:06]} O-O {[%emt 0:02:17]} 17. Be2 {[%emt 0:00:13]} Rb8 {[%emt 0:05:49]} 18. h4 {[%emt 0:07:05]} b4 {[%emt 0:09:37]} 19. Ncd5 {[%emt 0:00:05]} f5 {[%emt 0:02:25]} 20. exf5 {[%emt 0:05:49]} e4 {[%emt 0:00:10]} 21. Qg3 {[%emt 0:00:22]} gxf5 {[%emt 0:00:07]} 22. Qg5 {[%emt 0:09:50]} Qxg5 {[%emt 0:33:04]} 23. hxg5 {[%emt 0:00:05]} Na4 {[%emt 0:05:11]} 24. Nf4 {[%emt 0:19:51]} Kf7 {[%emt 0:01:11]} 25. Rxd6 {[%emt 0:13:03]} 1-0

[Event "4th Tamil Nadu Circuit-IM 2023"]
[Site "Pollachi"]
[Date "2023.11.08"]
[Round "5.3"]
[White "Shaik Sumer Arsh"]
[Black "Gochelashvili, David"]
[Result "1-0"]
[ECO "E94"]
[WhiteElo "2273"]
[BlackElo "2277"]
[Annotator "RC"]
[PlyCount "79"]
[EventDate "2023.10.23"]
[EventType "tourn"]
[EventCountry "IND"]
[SourceTitle "playchess.com"]
[Source "ChessBase"]
[SourceQuality "1"]
[TimeControl "5400+30"]

1. d4 {[%emt 0:00:06]} Nf6 {[%emt 0:05:27]} 2. c4 {[%emt 0:00:07]} g6 {[%emt 0:00:05]} 3. Nc3 {[%emt 0:00:07]} Bg7 {[%emt 0:00:04]} 4. e4 {[%emt 0:00:06]} d6 {[%emt 0:00:03]} 5. Nf3 {[%emt 0:00:05]} O-O {[%emt 0:00:09]} 6. Be2 {[%emt 0:00:06]} e5 {[%emt 0:00:42]} 7. Be3 {[%emt 0:00:08]} Nbd7 {[%emt 0:00:15]} 8. O-O {[%emt 0:00:20]} c6 {[%emt 0:00:52]} 9. d5 {[%emt 0:00:37]} Qe7 {[%emt 0:01:15]} 10. Qc2 {[%emt 0:01:23]} Ng4 {[%emt 0:04:46]} 11. Bg5 {[%emt 0:00:22]} f6 {[%emt 0:00:05]} 12. Bd2 {[%emt 0:00:08]} f5 {[%emt 0:01:04]} 13. Ng5 {[%emt 0:10:27]} Nb6 {[%emt 0:22:14]} 14. a4 {[%emt 0:06:04]} f4 {[%emt 0:07:40]} 15. a5 {[%emt 0:02:43]} Nxd5 {[%emt 0:11:56]} 16. cxd5 {[%emt 0:00:20]} Qxg5 {[%emt 0:00:04]} 17. a6 {[%emt 0:01:16]} cxd5 {[%emt 0:11:20]} 18. Qb3 {[%emt 0:10:43]} Rf7 {[%emt 0:12:37]} 19. axb7 {[%emt 0:07:28]} Rxb7 {[%emt 0:06:43]} 20. Qxd5+ {[%emt 0:00:03]} Kh8 {[%emt 0:00:20]} 21. Nb5 {[%emt 0:08:34]} Nf6 {[%emt 0:01:22]} 22. Qc6 {[%emt 0:00:41]} Bh3 {[%emt 0:01:44]} 23. Bf3 {[%emt 0:00:02]} Rab8 {[%emt 0:00:11]} 24. Nxd6 {[%emt 0:05:26]} Re7 {[%emt 0:00:01]} 25. Qc5 {[%emt 0:14:35]} Bf8 {[%emt 0:03:13]} 26. Qc4 {[%emt 0:05:19]} Kg7 {[%emt 0:01:40]} 27. Nb5 {[%emt 0:01:20]} Rd7 {[%emt 0:03:57]} 28. Bc1 {[%emt 0:12:55]} Rb6 {[%emt 0:00:04]} 29. Nc7 {[%emt 0:01:05]} Kh6 {[%emt 0:01:10]} 30. Ra5 {[%emt 0:05:10]} Rb4 {[%emt 0:00:39]} 31. Qc6 {[%emt 0:00:24]} Rb3 {[%emt 0:00:35]} 32. Ne6 {[%emt 0:01:28]} Qh4 {[%emt 0:03:29]} 33. g3 {[%emt 0:01:00]} Rxf3 {[%emt 0:00:02]} 34. gxh4 {[%emt 0:00:27]} Rd6 {[%emt 0:00:36]} 35. Qa8 {[%emt 0:00:49]} Be7 {[%emt 0:00:22]} 36. Ng5 {[%emt 0:02:13]} Bxf1 {[%emt 0:01:01]} 37. Kxf1 {[%emt 0:00:02]} Rd1+ {[%emt 0:00:36]} 38. Ke2 {[%emt 0:00:04]} Rfd3 {[%emt 0:00:07]} 39. Rxe5 {[%emt 0:00:35]} Rd8 {[%emt 0:00:53]} 40. Nf7+ {[%emt 0:00:05]} 1-0